[Event "Early-Titled-Tuesday-Blitz-March-19-2024"]
[Site "Chess.com"]
[Date "2024.03.19"]
[Round "6"]
[White "Adar_07"]
[Black "BilodeauA"]
[Result "0-1"]
[WhiteElo "2844"]
[BlackElo "3051"]
[TimeControl "180+1"]
[EndTime "9:08:57 PDT"]
[Termination "BilodeauA won on time"]

1. e4 {[%clk 0:03:00.9]} 1... e5 {[%clk 0:02:58.6]} 2. Nf3 {[%clk 0:03:00.9]}
2... Nc6 {[%clk 0:02:59.3]} 3. Bb5 {[%clk 0:03:00.6]} 3... a6 {[%clk 0:02:59.8]}
4. Ba4 {[%clk 0:03:01]} 4... d6 {[%clk 0:03:00.5]} 5. d4 {[%clk 0:02:57.2]} 5...
Bd7 {[%clk 0:02:58.4]} 6. dxe5 {[%clk 0:02:56.7]} 6... dxe5 {[%clk 0:02:55.5]}
7. O-O {[%clk 0:02:52.7]} 7... Bd6 {[%clk 0:02:54.4]} 8. Nc3 {[%clk 0:02:52.5]}
8... Nf6 {[%clk 0:02:44.7]} 9. Bg5 {[%clk 0:02:52.1]} 9... h6 {[%clk 0:02:43.4]}
10. Bh4 {[%clk 0:02:52.3]} 10... g5 {[%clk 0:02:18.2]} 11. Bg3 {[%clk
0:02:52.2]} 11... Qe7 {[%clk 0:02:18.6]} 12. Nd5 {[%clk 0:02:48]} 12... Nxd5
{[%clk 0:02:18.5]} 13. exd5 {[%clk 0:02:48.9]} 13... Nb8 {[%clk 0:02:19.1]} 14.
c4 {[%clk 0:02:41.5]} 14... f6 {[%clk 0:02:08.5]} 15. Re1 {[%clk 0:02:37.9]}
15... O-O {[%clk 0:01:41.4]} 16. Bc2 {[%clk 0:02:27.8]} 16... Bg4 {[%clk
0:01:33]} 17. Qd3 {[%clk 0:02:23.3]} 17... Nd7 {[%clk 0:01:32.5]} 18. Qg6+
{[%clk 0:02:12.1]} 18... Qg7 {[%clk 0:01:31.8]} 19. Nd2 {[%clk 0:02:02]} 19...
Qxg6 {[%clk 0:01:24.1]} 20. Bxg6 {[%clk 0:02:02.5]} 20... Kg7 {[%clk 0:01:24.8]}
21. Bc2 {[%clk 0:02:00.7]} 21... a5 {[%clk 0:01:20]} 22. f3 {[%clk 0:01:45]}
22... Bh5 {[%clk 0:01:20]} 23. Bf2 {[%clk 0:01:44.6]} 23... f5 {[%clk
0:01:14.8]} 24. Rac1 {[%clk 0:01:40.8]} 24... b6 {[%clk 0:01:15]} 25. Ba4 {[%clk
0:01:40.5]} 25... Nc5 {[%clk 0:01:14.6]} 26. Bc6 {[%clk 0:01:40]} 26... Rad8
{[%clk 0:01:14.8]} 27. Rc3 {[%clk 0:01:36]} 27... Bg6 {[%clk 0:01:13.4]} 28. a3
{[%clk 0:01:11.3]} 28... e4 {[%clk 0:01:01.9]} 29. Bd4+ {[%clk 0:01:06.4]} 29...
Kh7 {[%clk 0:01:01.6]} 30. b4 {[%clk 0:01:06.5]} 30... axb4 {[%clk 0:01:00.3]}
31. axb4 {[%clk 0:01:06.7]} 31... Nd3 {[%clk 0:00:31.3]} 32. Rxd3 {[%clk
0:01:01.7]} 32... exd3 {[%clk 0:00:32.2]} 33. c5 {[%clk 0:01:02.1]} 33... bxc5
{[%clk 0:00:33]} 34. bxc5 {[%clk 0:01:02.6]} 34... Bf4 {[%clk 0:00:33.7]} 35.
Nc4 {[%clk 0:00:57.7]} 35... d2 {[%clk 0:00:31.5]} 36. Rd1 {[%clk 0:00:48.6]}
36... Be8 {[%clk 0:00:31.7]} 37. Bb7 {[%clk 0:00:14.7]} 37... Ba4 {[%clk
0:00:30.8]} 38. Rxd2 {[%clk 0:00:15.2]} 38... Bxd2 {[%clk 0:00:30.9]} 39. Nxd2
{[%clk 0:00:16.1]} 39... Rb8 {[%clk 0:00:27.7]} 40. c6 {[%clk 0:00:15.2]} 40...
Rbd8 {[%clk 0:00:28]} 41. Bc5 {[%clk 0:00:09.8]} 41... Rf7 {[%clk 0:00:18.2]}
42. d6 {[%clk 0:00:09]} 42... cxd6 {[%clk 0:00:16.5]} 43. Bb6 {[%clk 0:00:09.5]}
43... Rb8 {[%clk 0:00:15.2]} 44. c7 {[%clk 0:00:06.3]} 44... Rxc7 {[%clk
0:00:15.6]} 45. Bxc7 {[%clk 0:00:07.2]} 45... Rxb7 {[%clk 0:00:16.4]} 46. Bxd6
{[%clk 0:00:07.9]} 46... Rd7 {[%clk 0:00:16.2]} 47. Bb4 {[%clk 0:00:07.9]} 47...
Rd4 {[%clk 0:00:16.4]} 48. Bc3 {[%clk 0:00:08.3]} 48... Rd3 {[%clk 0:00:16.8]}
49. Ba5 {[%clk 0:00:09]} 49... Bb5 {[%clk 0:00:12.3]} 50. Kf2 {[%clk 0:00:09.1]}
50... Kg6 {[%clk 0:00:10.4]} 51. g3 {[%clk 0:00:06]} 51... Bc6 {[%clk 0:00:09]}
52. Bb4 {[%clk 0:00:03.9]} 52... h5 {[%clk 0:00:07.3]} 53. h3 {[%clk 0:00:04.1]}
53... h4 {[%clk 0:00:06.3]} 54. gxh4 {[%clk 0:00:03.9]} 54... gxh4 {[%clk
0:00:07.2]} 55. Ke2 {[%clk 0:00:03.4]} 55... Rd5 {[%clk 0:00:07]} 56. Ke3 {[%clk
0:00:03.1]} 56... Rb5 {[%clk 0:00:06.3]} 57. Bc3 {[%clk 0:00:03.3]} 57... Rb8
{[%clk 0:00:03.6]} 58. Nc4 {[%clk 0:00:03.4]} 58... Bd5 {[%clk 0:00:02.9]} 59.
Ne5+ {[%clk 0:00:02.6]} 59... Kg5 {[%clk 0:00:03.4]} 60. Nf7+ {[%clk 0:00:02.7]}
60... Kh5 {[%clk 0:00:03.9]} 61. Nd6 {[%clk 0:00:01.4]} 61... Rf8 {[%clk
0:00:02.9]} 62. Kf4 {[%clk 0:00:01.6]} 62... Kg6 {[%clk 0:00:03.5]} 63. Be5
{[%clk 0:00:01.7]} 63... Be6 {[%clk 0:00:04]} 64. Nb5 {[%clk 0:00:01.6]} 64...
Ra8 {[%clk 0:00:04.1]} 65. Nd4 {[%clk 0:00:02.2]} 65... Ra4 {[%clk 0:00:04.8]}
66. Ke3 {[%clk 0:00:02.5]} 66... Bd5 {[%clk 0:00:05.4]} 67. Kf4 {[%clk
0:00:02.5]} 67... Ra3 {[%clk 0:00:06.1]} 68. Bd6 {[%clk 0:00:01.7]} 68... Rd3
{[%clk 0:00:06.5]} 69. Ke5 {[%clk 0:00:01.8]} 69... Bxf3 {[%clk 0:00:05.6]} 70.
Nxf5 {[%clk 0:00:01.4]} 70... Kh5 {[%clk 0:00:03]} 71. Ng7+ {[%clk 0:00:01.3]}
71... Kg5 {[%clk 0:00:02.9]} 72. Ne6+ {[%clk 0:00:01.8]} 72... Kh5 {[%clk
0:00:02.7]} 73. Nf4+ {[%clk 0:00:02.1]} 73... Kg5 {[%clk 0:00:03.4]} 74. Nxd3
{[%clk 0:00:02.9]} 74... Bg2 {[%clk 0:00:04.3]} 75. Nf2 {[%clk 0:00:03.4]} 75...
Bxh3 {[%clk 0:00:04.4]} 76. Nxh3+ {[%clk 0:00:03.3]} 76... Kg4 {[%clk
0:00:05.3]} 77. Nf2+ {[%clk 0:00:03.1]} 77... Kf3 {[%clk 0:00:05.4]} 78. Bc5
{[%clk 0:00:02.4]} 78... Kg2 {[%clk 0:00:06]} 79. Ke4 {[%clk 0:00:01.9]} 79...
h3 {[%clk 0:00:06.9]} 80. Ng4 {[%clk 0:00:01.3]} 80... h2 {[%clk 0:00:07.2]} 81.
Ne3+ {[%clk 0:00:01.8]} 81... Kh3 {[%clk 0:00:06.8]} 0-1

[Event "Early-Titled-Tuesday-Blitz-March-19-2024"]
[Site "Chess.com"]
[Date "2024.03.19"]
[Round "6"]
[White "CSB7"]
[Black "ahkashefi2800"]
[Result "1-0"]
[WhiteElo "2783"]
[BlackElo "2580"]
[TimeControl "180+1"]
[EndTime "9:08:58 PDT"]
[Termination "CSB7 won by checkmate"]

1. d4 {[%clk 0:03:00.9]} 1... d5 {[%clk 0:02:59.8]} 2. Nf3 {[%clk 0:02:58.2]}
2... Nf6 {[%clk 0:02:57]} 3. c4 {[%clk 0:02:58]} 3... c6 {[%clk 0:02:56.8]} 4.
Nbd2 {[%clk 0:02:48.2]} 4... Bf5 {[%clk 0:02:53.4]} 5. Nh4 {[%clk 0:02:47.6]}
5... Bg6 {[%clk 0:02:52.1]} 6. Qb3 {[%clk 0:02:46.6]} 6... Qb6 {[%clk
0:02:51.9]} 7. Qh3 {[%clk 0:02:46.7]} 7... Nbd7 {[%clk 0:02:42.7]} 8. Nxg6
{[%clk 0:02:40.8]} 8... fxg6 {[%clk 0:02:42.1]} 9. e3 {[%clk 0:02:38.1]} 9...
O-O-O {[%clk 0:02:39.6]} 10. c5 {[%clk 0:02:25.6]} 10... Qc7 {[%clk 0:02:39.6]}
11. Qe6 {[%clk 0:02:26]} 11... Kb8 {[%clk 0:02:36.3]} 12. b4 {[%clk 0:02:10]}
12... Ka8 {[%clk 0:02:32]} 13. h4 {[%clk 0:01:50.6]} 13... Nb8 {[%clk
0:02:23.2]} 14. g3 {[%clk 0:01:50.8]} 14... Qd7 {[%clk 0:02:23.2]} 15. Bh3
{[%clk 0:01:50.7]} 15... Qxe6 {[%clk 0:02:17.2]} 16. Bxe6 {[%clk 0:01:51.6]}
16... Ne8 {[%clk 0:02:17.1]} 17. Nf3 {[%clk 0:01:37.4]} 17... Nc7 {[%clk
0:02:17]} 18. Bh3 {[%clk 0:01:33.4]} 18... e6 {[%clk 0:02:07.2]} 19. Ng5 {[%clk
0:01:06.6]} 19... Re8 {[%clk 0:02:03.2]} 20. Rb1 {[%clk 0:01:05]} 20... h6
{[%clk 0:02:01.7]} 21. Nf7 {[%clk 0:01:04.9]} 21... Rg8 {[%clk 0:01:53.6]} 22.
Ne5 {[%clk 0:01:00.4]} 22... g5 {[%clk 0:01:47.7]} 23. hxg5 {[%clk 0:01:01.3]}
23... hxg5 {[%clk 0:01:48]} 24. Ke2 {[%clk 0:00:43.4]} 24... Be7 {[%clk
0:01:44.9]} 25. Bd2 {[%clk 0:00:39.3]} 25... Bf6 {[%clk 0:01:44.8]} 26. f4
{[%clk 0:00:39.9]} 26... gxf4 {[%clk 0:01:44.3]} 27. exf4 {[%clk 0:00:34.9]}
27... Bxe5 {[%clk 0:01:25.9]} 28. fxe5 {[%clk 0:00:34.3]} 28... Ref8 {[%clk
0:01:15.5]} 29. Rbf1 {[%clk 0:00:33.2]} 29... Nd7 {[%clk 0:01:15.2]} 30. Rxf8+
{[%clk 0:00:31.6]} 30... Rxf8 {[%clk 0:01:15]} 31. Bg4 {[%clk 0:00:30]} 31... a6
{[%clk 0:01:14.1]} 32. Rh7 {[%clk 0:00:26.6]} 32... Rf7 {[%clk 0:01:13.5]} 33.
Bh5 {[%clk 0:00:24.6]} 33... Rf5 {[%clk 0:01:06.8]} 34. g4 {[%clk 0:00:23.1]}
34... Rf8 {[%clk 0:01:03.2]} 35. Rxg7 {[%clk 0:00:23.4]} 35... Nb5 {[%clk
0:00:56.9]} 36. Rxd7 {[%clk 0:00:20]} 36... Nxd4+ {[%clk 0:00:57.2]} 37. Kd3
{[%clk 0:00:20.7]} 37... Nf3 {[%clk 0:00:57.5]} 38. Bc3 {[%clk 0:00:16.3]} 38...
Ng5 {[%clk 0:00:55]} 39. Bg6 {[%clk 0:00:10.6]} 39... Rf3+ {[%clk 0:00:54.5]}
40. Kc2 {[%clk 0:00:10.7]} 40... Rg3 {[%clk 0:00:52.7]} 41. b5 {[%clk
0:00:10.1]} 41... axb5 {[%clk 0:00:51.7]} 42. Ba5 {[%clk 0:00:10.7]} 42... Ka7
{[%clk 0:00:51.9]} 43. Bd8 {[%clk 0:00:06.2]} 43... Rxg4 {[%clk 0:00:48.8]} 44.
Bd3 {[%clk 0:00:06.2]} 44... Rg2+ {[%clk 0:00:43]} 45. Kd1 {[%clk 0:00:05.3]}
45... Ne4 {[%clk 0:00:32.5]} 46. Bb6+ {[%clk 0:00:04.7]} 46... Ka6 {[%clk
0:00:31.4]} 47. Bf1 {[%clk 0:00:04]} 47... Rf2 {[%clk 0:00:26.7]} 48. Bh3 {[%clk
0:00:02.7]} 48... Ng5 {[%clk 0:00:22.8]} 49. Rd8 {[%clk 0:00:02.1]} 49... b4
{[%clk 0:00:22.3]} 50. Bg4 {[%clk 0:00:02.8]} 50... Nf3 {[%clk 0:00:10.9]} 51.
Bxf3 {[%clk 0:00:02.3]} 51... Rxf3 {[%clk 0:00:11]} 52. Re8 {[%clk 0:00:03.2]}
52... Rd3+ {[%clk 0:00:10]} 53. Kc2 {[%clk 0:00:03]} 53... Re3 {[%clk 0:00:09]}
54. Rxe6 {[%clk 0:00:03.2]} 54... Kb5 {[%clk 0:00:09.6]} 55. Re8 {[%clk
0:00:03.8]} 55... Kc4 {[%clk 0:00:09.7]} 56. e6 {[%clk 0:00:03.8]} 56... d4
{[%clk 0:00:09.8]} 57. e7 {[%clk 0:00:03.5]} 57... Re2+ {[%clk 0:00:09.9]} 58.
Kd1 {[%clk 0:00:04]} 58... d3 {[%clk 0:00:10.2]} 59. Ba5 {[%clk 0:00:02.5]}
59... Kc3 {[%clk 0:00:10]} 60. Rh8 {[%clk 0:00:02.4]} 60... Rxe7 {[%clk
0:00:09.5]} 61. Rh4 {[%clk 0:00:03.1]} 61... Kb2 {[%clk 0:00:06.1]} 62. Rxb4+
{[%clk 0:00:03]} 62... Kxa2 {[%clk 0:00:05.5]} 63. Rd4 {[%clk 0:00:03.7]} 63...
Re5 {[%clk 0:00:02.1]} 64. Bb6 {[%clk 0:00:03.1]} 64... Kb3 {[%clk 0:00:02.6]}
65. Rxd3+ {[%clk 0:00:03.8]} 65... Kc4 {[%clk 0:00:03]} 66. Rd2 {[%clk
0:00:03.8]} 66... Kb5 {[%clk 0:00:03.2]} 67. Rb2+ {[%clk 0:00:03]} 67... Kc4
{[%clk 0:00:03.5]} 68. Re2 {[%clk 0:00:03.7]} 68... Rd5+ {[%clk 0:00:03.1]} 69.
Kc2 {[%clk 0:00:04.4]} 69... Rd7 {[%clk 0:00:03.3]} 70. Re4+ {[%clk 0:00:04.6]}
70... Kb5 {[%clk 0:00:03.6]} 71. Kc3 {[%clk 0:00:03.9]} 71... Rf7 {[%clk
0:00:04.1]} 72. Rb4+ {[%clk 0:00:04.3]} 72... Ka6 {[%clk 0:00:03.9]} 73. Ra4+
{[%clk 0:00:05]} 73... Kb5 {[%clk 0:00:03.1]} 74. Ra5# {[%clk 0:00:05.9]} 1-0

[Event "Early-Titled-Tuesday-Blitz-March-19-2024"]
[Site "Chess.com"]
[Date "2024.03.19"]
[Round "6"]
[White "Kotlyar_K"]
[Black "Kaissa10"]
[Result "1/2-1/2"]
[WhiteElo "2615"]
[BlackElo "2297"]
[TimeControl "180+1"]
[EndTime "9:08:58 PDT"]
[Termination "Game drawn - insufficient material"]

1. e4 {[%clk 0:02:58]} 1... c5 {[%clk 0:02:59.9]} 2. Nf3 {[%clk 0:02:55.2]} 2...
Nc6 {[%clk 0:03:00]} 3. d4 {[%clk 0:02:52.1]} 3... cxd4 {[%clk 0:03:00.1]} 4.
Nxd4 {[%clk 0:02:51.6]} 4... g6 {[%clk 0:03:00.5]} 5. c4 {[%clk 0:02:50.8]} 5...
Nf6 {[%clk 0:02:59]} 6. Nc3 {[%clk 0:02:49.7]} 6... d6 {[%clk 0:02:59.6]} 7. Be3
{[%clk 0:02:49.4]} 7... Bg7 {[%clk 0:02:51.9]} 8. Be2 {[%clk 0:02:47.8]} 8...
O-O {[%clk 0:02:51.3]} 9. O-O {[%clk 0:02:46.1]} 9... Nxd4 {[%clk 0:02:50.6]}
10. Bxd4 {[%clk 0:02:46.5]} 10... Bd7 {[%clk 0:02:51.2]} 11. Qd3 {[%clk
0:02:46.5]} 11... a5 {[%clk 0:02:51]} 12. Rad1 {[%clk 0:02:46]} 12... a4 {[%clk
0:02:50]} 13. f4 {[%clk 0:02:40.9]} 13... Qa5 {[%clk 0:02:47.8]} 14. Kh1 {[%clk
0:02:33.9]} 14... Rac8 {[%clk 0:02:38.1]} 15. f5 {[%clk 0:02:09.4]} 15... Bc6
{[%clk 0:02:19.7]} 16. Nd5 {[%clk 0:02:04]} 16... Bxd5 {[%clk 0:02:09.2]} 17.
cxd5 {[%clk 0:02:03.6]} 17... Nd7 {[%clk 0:01:42.6]} 18. Bxg7 {[%clk 0:01:59.1]}
18... Kxg7 {[%clk 0:01:43.5]} 19. fxg6 {[%clk 0:00:49.5]} 19... hxg6 {[%clk
0:01:36]} 20. Qd4+ {[%clk 0:00:45.4]} 20... Ne5 {[%clk 0:01:15.7]} 21. Rf3
{[%clk 0:00:38.4]} 21... Qc5 {[%clk 0:01:12.3]} 22. Qxc5 {[%clk 0:00:33.9]}
22... Rxc5 {[%clk 0:01:12.1]} 23. Ra3 {[%clk 0:00:23.8]} 23... b5 {[%clk
0:01:11.2]} 24. b3 {[%clk 0:00:22.6]} 24... axb3 {[%clk 0:00:23.3]} 25. Rxb3
{[%clk 0:00:22.9]} 25... Rc2 {[%clk 0:00:20.2]} 26. Bxb5 {[%clk 0:00:20.9]}
26... Rxa2 {[%clk 0:00:19.9]} 27. Bf1 {[%clk 0:00:19.8]} 27... Rh8 {[%clk
0:00:14.1]} 28. h3 {[%clk 0:00:19.5]} 28... Ng4 {[%clk 0:00:12.1]} 29. Kg1
{[%clk 0:00:19.5]} 29... Nf6 {[%clk 0:00:09.4]} 30. Bd3 {[%clk 0:00:18.3]} 30...
Rc8 {[%clk 0:00:07]} 31. Rb7 {[%clk 0:00:17.9]} 31... Kf8 {[%clk 0:00:06.1]} 32.
Bb5 {[%clk 0:00:16.6]} 32... Rcc2 {[%clk 0:00:06]} 33. Bf1 {[%clk 0:00:16.7]}
33... Nxe4 {[%clk 0:00:05.6]} 34. Re1 {[%clk 0:00:17.2]} 34... f5 {[%clk
0:00:05.3]} 35. Rb8+ {[%clk 0:00:13.2]} 35... Kf7 {[%clk 0:00:05.1]} 36. Rb3
{[%clk 0:00:11.9]} 36... Kf6 {[%clk 0:00:05.2]} 37. Rf3 {[%clk 0:00:11.6]} 37...
Rc3 {[%clk 0:00:03.2]} 38. Rxe4 {[%clk 0:00:09.6]} 38... Rxf3 {[%clk 0:00:02.8]}
39. Re6+ {[%clk 0:00:09.9]} 39... Kf7 {[%clk 0:00:03.4]} 40. gxf3 {[%clk
0:00:09.5]} 40... Rd2 {[%clk 0:00:04.1]} 41. Bc4 {[%clk 0:00:08.3]} 41... Rd4
{[%clk 0:00:04.7]} 42. Bb3 {[%clk 0:00:08]} 42... Rd3 {[%clk 0:00:05.2]} 43. Bc4
{[%clk 0:00:07.5]} 43... Rxf3 {[%clk 0:00:05.7]} 44. Kg2 {[%clk 0:00:04.1]}
44... Rc3 {[%clk 0:00:06.2]} 45. Bf1 {[%clk 0:00:03.4]} 45... Rc2+ {[%clk
0:00:06.4]} 46. Re2 {[%clk 0:00:03.9]} 46... Rc5 {[%clk 0:00:06.5]} 47. Rd2
{[%clk 0:00:04.1]} 47... Kf6 {[%clk 0:00:07.1]} 48. Kf3 {[%clk 0:00:04.5]} 48...
g5 {[%clk 0:00:06.2]} 49. Bd3 {[%clk 0:00:04]} 49... Rc3 {[%clk 0:00:05.9]} 50.
Ke3 {[%clk 0:00:04.5]} 50... Ke5 {[%clk 0:00:06]} 51. Ke2 {[%clk 0:00:04]} 51...
Ra3 {[%clk 0:00:05.2]} 52. Bc2 {[%clk 0:00:03.8]} 52... Rxh3 {[%clk 0:00:04.6]}
53. Kf1 {[%clk 0:00:03.7]} 53... Rh1+ {[%clk 0:00:04.7]} 54. Kg2 {[%clk
0:00:03.7]} 54... Rh4 {[%clk 0:00:04.6]} 55. Bb3 {[%clk 0:00:03.8]} 55... Re4
{[%clk 0:00:04.4]} 56. Rf2 {[%clk 0:00:04.1]} 56... g4 {[%clk 0:00:04.4]} 57.
Rd2 {[%clk 0:00:04.3]} 57... f4 {[%clk 0:00:04.4]} 58. Ba2 {[%clk 0:00:04.8]}
58... Re3 {[%clk 0:00:04.8]} 59. Kf2 {[%clk 0:00:04.9]} 59... g3+ {[%clk
0:00:04.8]} 60. Kg2 {[%clk 0:00:04.7]} 60... Ra3 {[%clk 0:00:03.6]} 61. Bb1
{[%clk 0:00:04.5]} 61... Re3 {[%clk 0:00:03.9]} 62. Bc2 {[%clk 0:00:04.1]} 62...
e6 {[%clk 0:00:04]} 63. dxe6 {[%clk 0:00:03.8]} 63... Kxe6 {[%clk 0:00:04.9]}
64. Bb1 {[%clk 0:00:04.7]} 64... Ke5 {[%clk 0:00:05.3]} 65. Bc2 {[%clk
0:00:04.9]} 65... d5 {[%clk 0:00:05.7]} 66. Bb1 {[%clk 0:00:05.2]} 66... d4
{[%clk 0:00:06.4]} 67. Bc2 {[%clk 0:00:05.7]} 67... Kf6 {[%clk 0:00:06.8]} 68.
Rxd4 {[%clk 0:00:04]} 68... Re2+ {[%clk 0:00:06.8]} 69. Kf3 {[%clk 0:00:04.4]}
69... Rf2+ {[%clk 0:00:07.3]} 70. Kg4 {[%clk 0:00:04.2]} 70... Rxc2 {[%clk
0:00:07.9]} 71. Rxf4+ {[%clk 0:00:04.2]} 71... Kg6 {[%clk 0:00:08.5]} 72. Kxg3
{[%clk 0:00:04.8]} 72... Rc3+ {[%clk 0:00:08.5]} 73. Rf3 {[%clk 0:00:05.4]}
73... Rxf3+ {[%clk 0:00:08.9]} 74. Kxf3 {[%clk 0:00:06.3]} 1/2-1/2

[Event "Early-Titled-Tuesday-Blitz-March-19-2024"]
[Site "Chess.com"]
[Date "2024.03.19"]
[Round "6"]
[White "DarZay"]
[Black "djano"]
[Result "0-1"]
[WhiteElo "2359"]
[BlackElo "2633"]
[TimeControl "180+1"]
[EndTime "9:09:03 PDT"]
[Termination "djano won by resignation"]

1. e4 {[%clk 0:02:54.2]} 1... c5 {[%clk 0:02:59.7]} 2. Nc3 {[%clk 0:02:53]} 2...
Nc6 {[%clk 0:02:59.2]} 3. Bb5 {[%clk 0:02:51.8]} 3... Nd4 {[%clk 0:02:59.6]} 4.
Bc4 {[%clk 0:02:51.8]} 4... e6 {[%clk 0:02:56.3]} 5. Nge2 {[%clk 0:02:51.9]}
5... Nf6 {[%clk 0:02:52.3]} 6. d3 {[%clk 0:02:51]} 6... a6 {[%clk 0:02:49.4]} 7.
a4 {[%clk 0:02:49.9]} 7... Qc7 {[%clk 0:02:49.7]} 8. O-O {[%clk 0:02:48]} 8...
b6 {[%clk 0:02:30.3]} 9. f4 {[%clk 0:02:47.1]} 9... Bb7 {[%clk 0:02:28.7]} 10.
Nxd4 {[%clk 0:02:41.8]} 10... cxd4 {[%clk 0:02:29.1]} 11. Ne2 {[%clk 0:02:42.1]}
11... Nxe4 {[%clk 0:02:29.4]} 12. Nxd4 {[%clk 0:02:39.4]} 12... Nf6 {[%clk
0:02:20.8]} 13. Kh1 {[%clk 0:02:37.5]} 13... Bc5 {[%clk 0:02:19.4]} 14. Nb3
{[%clk 0:02:37.4]} 14... Qc6 {[%clk 0:02:15.8]} 15. Qe2 {[%clk 0:02:31.1]} 15...
Be7 {[%clk 0:02:10.4]} 16. d4 {[%clk 0:02:30.2]} 16... O-O {[%clk 0:02:03.2]}
17. Bd3 {[%clk 0:02:29.1]} 17... Nd5 {[%clk 0:01:52.3]} 18. Bd2 {[%clk
0:02:27.4]} 18... f5 {[%clk 0:01:49.5]} 19. Rf3 {[%clk 0:02:24]} 19... Bf6
{[%clk 0:01:42.4]} 20. Rh3 {[%clk 0:02:22.6]} 20... g6 {[%clk 0:01:39.7]} 21.
Kg1 {[%clk 0:02:17]} 21... Rac8 {[%clk 0:01:38.6]} 22. c3 {[%clk 0:02:16.3]}
22... Rfe8 {[%clk 0:01:31.4]} 23. a5 {[%clk 0:02:15.4]} 23... d6 {[%clk
0:01:22.4]} 24. Bxa6 {[%clk 0:02:09]} 24... Bxa6 {[%clk 0:01:04.8]} 25. Qxa6
{[%clk 0:02:08.5]} 25... Ra8 {[%clk 0:00:59]} 26. Qe2 {[%clk 0:02:02.4]} 26...
bxa5 {[%clk 0:00:53.9]} 27. Rxa5 {[%clk 0:02:00.7]} 27... Rxa5 {[%clk 0:00:49]}
28. Nxa5 {[%clk 0:02:00.9]} 28... Qb6 {[%clk 0:00:49.6]} 29. b4 {[%clk 0:01:53]}
29... e5 {[%clk 0:00:30.5]} 30. Qc4 {[%clk 0:01:46.7]} 30... exf4 {[%clk
0:00:31]} 31. Qxd5+ {[%clk 0:01:46.6]} 31... Kg7 {[%clk 0:00:31.7]} 32. Nc4
{[%clk 0:01:39.2]} 32... Qa6 {[%clk 0:00:31.4]} 33. Nxd6 {[%clk 0:01:37.4]}
33... Qa1+ {[%clk 0:00:29.1]} 34. Kf2 {[%clk 0:01:37.3]} 34... Re7 {[%clk
0:00:24.8]} 35. Bxf4 {[%clk 0:01:30.6]} 35... Qe1+ {[%clk 0:00:21.6]} 36. Kf3
{[%clk 0:01:26.8]} 36... Qe2+ {[%clk 0:00:21.6]} 37. Kg3 {[%clk 0:01:24.6]}
37... Qg4+ {[%clk 0:00:20.2]} 38. Kf2 {[%clk 0:01:24.9]} 38... Qe2+ {[%clk
0:00:16.5]} 39. Kg3 {[%clk 0:01:25]} 39... Qg4+ {[%clk 0:00:16.7]} 40. Kf2
{[%clk 0:01:24.5]} 40... Qxf4+ {[%clk 0:00:13.1]} 41. Rf3 {[%clk 0:01:16]} 41...
Qd2+ {[%clk 0:00:09.6]} 42. Kg3 {[%clk 0:01:16.1]} 42... Qg5+ {[%clk 0:00:08.8]}
43. Kf2 {[%clk 0:01:16.3]} 43... Qh4+ {[%clk 0:00:07.4]} 44. Rg3 {[%clk
0:01:12.1]} 44... Qf4+ {[%clk 0:00:06.1]} 45. Rf3 {[%clk 0:01:12]} 45... Qd2+
{[%clk 0:00:06.1]} 46. Kg3 {[%clk 0:01:11.9]} 46... Qe1+ {[%clk 0:00:05.3]} 47.
Rf2 {[%clk 0:01:00]} 47... Re3+ {[%clk 0:00:05.3]} 48. Qf3 {[%clk 0:00:56.8]}
48... f4+ {[%clk 0:00:04]} 49. Kxf4 {[%clk 0:00:53.5]} 49... Rxf3+ {[%clk
0:00:04.9]} 50. Rxf3 {[%clk 0:00:52.1]} 50... g5+ {[%clk 0:00:05.5]} 51. Kf5
{[%clk 0:00:48.4]} 51... Qe7 {[%clk 0:00:05.5]} 52. Nc4 {[%clk 0:00:32.4]} 52...
Qd7+ {[%clk 0:00:05.5]} 53. Ke4 {[%clk 0:00:32.3]} 53... Qc6+ {[%clk 0:00:05.5]}
54. Kd3 {[%clk 0:00:32.2]} 54... Qd5 {[%clk 0:00:04]} 55. Ne3 {[%clk 0:00:30.2]}
55... Qb5+ {[%clk 0:00:03.8]} 56. Ke4 {[%clk 0:00:29.9]} 56... Qc6+ {[%clk
0:00:03.3]} 57. Nd5 {[%clk 0:00:27]} 57... Qe6+ {[%clk 0:00:02.8]} 58. Kd3
{[%clk 0:00:25.1]} 58... Qxd5 {[%clk 0:00:03.7]} 59. Re3 {[%clk 0:00:24]} 59...
Qb5+ {[%clk 0:00:03.8]} 60. Ke4 {[%clk 0:00:22.8]} 60... Qb7+ {[%clk 0:00:04.7]}
61. d5 {[%clk 0:00:21.8]} 61... Qc7 {[%clk 0:00:04.6]} 62. Rd3 {[%clk
0:00:19.9]} 62... Qe5+ {[%clk 0:00:04.9]} 63. Kf3 {[%clk 0:00:19.3]} 63... Qf4+
{[%clk 0:00:05.8]} 64. Ke2 {[%clk 0:00:19.4]} 64... Qe4+ {[%clk 0:00:06.5]} 65.
Kd2 {[%clk 0:00:19.6]} 65... Qxg2+ {[%clk 0:00:06.8]} 66. Ke3 {[%clk 0:00:19.6]}
66... Qh3+ {[%clk 0:00:06.5]} 67. Ke4 {[%clk 0:00:19.6]} 67... Qg4+ {[%clk
0:00:06.7]} 68. Ke3 {[%clk 0:00:19.8]} 68... Qf4+ {[%clk 0:00:07.1]} 69. Ke2
{[%clk 0:00:19.9]} 69... Qe4+ {[%clk 0:00:07.5]} 70. Kd2 {[%clk 0:00:20.3]}
70... Qf4+ {[%clk 0:00:07.8]} 71. Kc2 {[%clk 0:00:20.2]} 71... Qxh2+ {[%clk
0:00:08.7]} 72. Kb3 {[%clk 0:00:20.3]} 72... Qe2 {[%clk 0:00:08.5]} 73. Rg3
{[%clk 0:00:16.2]} 73... Qe1 {[%clk 0:00:08]} 74. Rd3 {[%clk 0:00:15.6]} 74...
Qe2 {[%clk 0:00:07.7]} 75. Rg3 {[%clk 0:00:15.7]} 75... g4 {[%clk 0:00:07.7]}
76. c4 {[%clk 0:00:12.4]} 76... Qd1+ {[%clk 0:00:07.5]} 77. Ka3 {[%clk
0:00:11.6]} 77... Be5 {[%clk 0:00:06.3]} 78. Re3 {[%clk 0:00:09.2]} 78... Qc1+
{[%clk 0:00:05.3]} 79. Ka4 {[%clk 0:00:09.1]} 79... Qxe3 {[%clk 0:00:06]} 80. c5
{[%clk 0:00:09.6]} 80... Qd4 {[%clk 0:00:06.2]} 81. d6 {[%clk 0:00:09.7]} 81...
Bxd6 {[%clk 0:00:05.7]} 82. cxd6 {[%clk 0:00:09.4]} 82... Qxd6 {[%clk
0:00:06.6]} 83. b5 {[%clk 0:00:09.7]} 83... Qb6 {[%clk 0:00:06.8]} 84. Kb4
{[%clk 0:00:09.9]} 84... g3 {[%clk 0:00:07.7]} 85. Kc4 {[%clk 0:00:10.4]} 85...
g2 {[%clk 0:00:08.6]} 86. Kd5 {[%clk 0:00:11]} 86... g1=Q {[%clk 0:00:09.5]} 0-1